Cogmind - Beta 10.2 *** ADVENTURER MODE // 2020.11.14 @ 20:22:30 // Halloween2020/ForbiddenLore Player: the stranger Result: Destroyed by G-34 Mercenary with Small Laser Performance ------------- Evolutions (1) 500 Regions Visited (2) 400 Robots Destroyed (26) 130 Value Destroyed (656) 656 Prototype IDs (4) 80 Alien Tech Used (0) 0 Bonus (0) 0 TOTAL SCORE: 1766 Bonus ------- None Cogmind --------- Core Integrity 0/400 Matter 253/300 Energy 265/265 System Corruption 0% Temperature Cool (60) Movement Core (400) Ox7 Location -9/Materials Parts ------- > --- POWER (1) -------- Improved Ion Engine > --- PROPULSION (3) --- (None) > --- UTILITY (2) ------ Large Storage Unit Improved Targeting Computer > --- WEAPON (3) ------- (None) > --- INVENTORY (10) --- Ion Engine Large Storage Unit Large Storage Unit Weight Redist. System Improved Targeting Computer Improved Targeting Computer Peak State ------------ > --- POWER ------------ Improved Ion Engine > --- PROPULSION ------- Flight Unit Flight Unit Flight Unit > --- UTILITY ---------- Large Storage Unit Improved Targeting Computer > --- WEAPON ----------- Heavy EM Pulse Gun Particle Gun Particle Gun > --- INVENTORY -------- Light Ion Engine Flight Unit Large Storage Unit Weight Redist. System Improved Targeting Computer Improved Targeting Computer High-powered Tractor Beam Medium Laser Small Laser [Rating: 15] Favorites ----------- Power Light Ion Engine Engine Light Ion Engine Propulsion Flight Unit Wheel Compact Wheel Flight Unit Flight Unit Utility Large Storage Unit Storage Large Storage Unit Processor Improved Targeting Computer Weapon Assault Rifle Energy Gun Medium Laser Energy Cannon Beam Cannon Ballistic Gun Assault Rifle Special Weapon Welding Torch Build | -11 -10 -9 ------- Run | Scr Mat Mat Slots Evolved 2 | . . 2 Power . | . . . Propulsion 1 | . . 1 Utility . | . . . Weapon 1 | . . 1 Parts Attached 36 | 6 8 22 Power 6 | 1 1 4 Engine 6 | 1 1 4 Core . | . . . Reactor . | . . . Propulsion 9 | 2 2 5 Treads . | . . . Leg . | . . . Wheel 2 | 2 . . Hover . | . . . Flight 7 | . 2 5 Utility 4 | 1 2 1 Device . | . . . Storage 3 | 1 2 . Processor 1 | . . 1 Hackware . | . . . Protection . | . . . Artifact . | . . . Weapon 17 | 2 3 12 Energy Gun 9 | 1 1 7 Energy Cannon 1 | . . 1 Ballistic Gun 6 | 1 2 3 Ballistic Cannon . | . . . Launcher . | . . . Special Weapon 1 | . . 1 Impact Weapon . | . . . Slashing Weapon . | . . . Piercing Weapon . | . . . Special Melee Weapon . | . . . Unidentified Prototypes . | . . . Parts Lost 16 | . 3 13 Power 3 | . 1 2 Propulsion 5 | . 1 4 Utility . | . . . Weapon 8 | . 1 7 Highest Loss Streak 6 | . 3 6 Average Slot Usage (%) 87 | . 98 81 Engine 11 | . 13 10 Wheel 1 | . 3 . Flight 25 | . 23 26 Storage 20 | . 27 16 Processor 3 | . . 5 Energy Gun 12 | . 5 15 Ballistic Gun 11 | . 22 5 Naked Turns . | . . . Heaviest Build 40 | 10 39 40 Greatest Support 32 | 32 32 12 Greatest Overweight (x) 9 | 2 4 9 Average Overweight (x) 2 | . 3 3 Largest Inventory Capacity 16 | 6 16 16 Average Capacity 13 | 5 15 13 Most Carried 13 | 5 6 13 Average Carried 6 | 2 4 8 Final Capacity 16 | 6 16 10 Final Carried 6 | 2 6 6 Class Distribution -------------------- 70% | Mutant 11% | Gunner 11% | Scavenger-Gunner 6% | Scavenger-Mutant Dominant Class ---------------- Mutant | -10/Materials Mutant | -9/Materials Resources | -11 -10 -9 ----------- Run | Scr Mat Mat Matter Collected 743 | 208 154 381 Remotely . | . . . Salvage Created 856 | . 186 670 Parts 59 | . 14 45 Haulers Intercepted . | . . . Recyclers Shooed 2 | . . 2 Parts Field Recycled . | . . . Retrieved Matter . | . . . Parts Self-Destructed . | . . . Prevented . | . . . Kills | -11 -10 -9 ------- Run | Scr Mat Mat Combat Hostiles Destroyed 23 | . 8 15 Guns 22 | . 8 14 Cannons 1 | . . 1 Classes Destroyed 5 | . 2 3 Recycler 1 | . . 1 Watcher 2 | . . 2 Swarmer 10 | . 6 4 Grunt 10 | . 2 8 Sentry 3 | . . 3 Best Kill Streak 5 | . 5 5 Combat Bots Only 5 | . 5 5 Max Kills in Single Turn 1 | . 1 1 Gunslinging . | . . . Exploded . | . . . Melee . | . . . Uniques/NPCs Destroyed . | . . . Combat | -11 -10 -9 -------- Run | Scr Mat Mat Damage Taken 1624 | . 492 1132 Core 526 | . 120 406 Absorbed by Shields . | . . . Core Remaining (%) 76 | 100 52 . Volleys Fired 74 | . 25 49 Largest 3 | . 2 3 Hottest 180 | . 70 180 Shots Fired 133 | . 46 87 Gun 126 | . 46 80 Cannon 7 | . . 7 Launcher . | . . . Special . | . . . Kinetic 56 | . 33 23 Thermal 68 | . 13 55 Explosive . | . . . Electromagnetic 9 | . . 9 Robot Hit Streak 28 | . 8 28 Robot Miss Streak 2 | . 2 2 Penetration Max . | . . . Secondary Targets 4 | . 2 2 Max Gunslinging Chain 1 | . 1 1 Shots Hit Robots 98 | . 34 64 Core Hits 36 | . 10 26 Critical Hits 1 | . 1 . Critical Kills . | . . . Critical Parts Destroyed 1 | . 1 . Melee Attacks . | . . . Impact . | . . . Slashing . | . . . Piercing . | . . . Sneak Attacks . | . . . Combat Hostiles . | . . . Follow-up Attacks . | . . . Damage Inflicted 1208 | . 313 895 Guns 1134 | . 312 822 Cannons 71 | . . 71 Explosions . | . . . Melee . | . . . Ramming 3 | . 1 2 Kinetic 452 | . 238 214 Thermal 664 | . 74 590 Explosive . | . . . Electromagnetic 89 | . . 89 Impact . | . . . Slashing . | . . . Piercing . | . . . Highest Corruption . | . . . Average Corruption . | . . . Corruption Purged . | . . . Overload Shots . | . . . Overflow Damage . | . . . Projectiles . | . . . Explosions . | . . . Melee . | . . . Knockbacks . | . . . Impact . | . . . Kinetic . | . . . Secondary . | . . . Self-Inflicted Damage 1 | . . 1 Shots . | . . . Rammed 2 | . 1 1 Targets Rammed 2 | . 1 1 Kicked . | . . . Crushed . | . . . Highest Temperature 1085 | . 148 1085 Average Temperature 268 | . 51 345 Received Heat Transfer 612 | . 210 402 Effects 34 | . . 34 Shutdowns 5 | . . 5 Energy Bleed 3 | . . 3 Interference 3 | . . 3 Matter Decay 4 | . . 4 Short Circuit 5 | . . 5 Damage (minor) 2 | . . 2 Damage (major) 9 | . . 9 Damage (core) 3 | . . 3 Siege Activations . | . . . Robots Corrupted . | . . . Combat Hostiles . | . . . Parts Fried . | . . . Impact Corruptions . | . . . Robots Melted . | . . . Combat Hostiles . | . . . Parts Melted 5 | . 1 4 Heat Transferred 1655 | . 210 1445 Parts Sabotaged . | . . . Parts Stolen . | . . . Parts Stripped . | . . . Power Chain Reactions . | . . . Missiles Intercepted . | . . . Alert | -11 -10 -9 ------- Run | Scr Mat Mat Peak Influence 172 | . 105 172 Initial . | . . . Average 53 | . 57 53 Maximum Alert Level . | . . . Low Security (%) 100 | 100 100 100 Level 1 . | . . . Level 2 . | . . . Level 3 . | . . . Level 4 . | . . . Level 5 . | . . . High Security . | . . . Max Security . | . . . Squads Dispatched 4 | . . 4 Investigation 1 | . . 1 Extermination . | . . . Reinforcement 3 | . . 3 Assault . | . . . Garrison . | . . . Intercept . | . . . Construction Impeded . | . . . Haulers Reinforced . | . . . Stealth | -11 -10 -9 --------- Run | Scr Mat Mat Distress Signals 4 | . . 4 Communications Jammed . | . . . Distress Signals . | . . . Times Spotted 50 | . 16 34 Peak Tracking Total 7 | . 6 7 Tactical Retreats 3 | . 1 2 Traps | -11 -10 -9 ------- Run | Scr Mat Mat Traps Triggered . | . . . Indirectly . | . . . Trap Hack Attempts . | . . . Triggered . | . . . Disarmed . | . . . Reprogrammed . | . . . Reused . | . . . Traps Extracted . | . . . Installed . | . . . Triggered . | . . . Machines | -11 -10 -9 ---------- Run | Scr Mat Mat Machines Disabled 3 | . . 3 Max in Single Turn 1 | . . 1 Machines Sabotaged . | . . . Garrisons Compromised . | . . . Overloaded Fab Kills . | . . . Fab Network Shutdowns . | . . . Hacking | -11 -10 -9 --------- Run | Scr Mat Mat Machines Accessed 6 | . 4 2 Terminals 5 | . 4 1 Fabricators . | . . . Repair Stations . | . . . Recycling Units . | . . . Scanalyzers 1 | . . 1 Garrison Access . | . . . Total Hacks 21 | . 16 5 Successful 16 | . 12 4 Failed 5 | . 4 1 Catastrophic 1 | . 1 . Database Lockouts . | . . . Manual . | . . . Terminals 19 | . 16 3 Fabricators . | . . . Repair Stations . | . . . Recycling Units . | . . . Scanalyzers 2 | . . 2 Garrison Access . | . . . Terminal Hacks 14 | . 12 2 Record 3 | . 3 . Robot Analysis 1 | . 1 . Prototype ID Bank 2 | . 2 . Emergency Access Points 1 | . 1 . Locate Traps 2 | . 2 . Recall Reinforcements 1 | . . 1 Recall Assault 1 | . 1 . Registered Prototypes 1 | . . 1 Zone Layout 2 | . 2 . Fabricator Hacks . | . . . Repair Station Hacks . | . . . Recycling Unit Hacks . | . . . Scanalyzer 2 | . . 2 Insert Component 1 | . . 1 Analyze 1 | . . 1 Garrison Access Hacks . | . . . Unauthorized Hacks . | . . . Terminals . | . . . Fabricators . | . . . Repair Stations . | . . . Recycling Units . | . . . Scanalyzers . | . . . Garrison Access . | . . . Data Cores Recovered . | . . . Used . | . . . Hacking Detections 5 | . 4 1 Full Trace Events 4 | . 3 1 Feedback Events . | . . . Feedback Blocked . | . . . Robot Schematics Acquired . | . . . Robots Built . | . . . Matter . | . . . Time . | . . . Total Robot Build Rating . | . . . Part Schematics Acquired 1 | . . 1 Parts Built . | . . . Matter . | . . . Time . | . . . Total Part Build Rating . | . . . Parts Repaired . | . . . Time . | . . . Parts Recycled . | . . . Recycled Matter . | . . . Retrieved Matter . | . . . Retrieved Components . | . . . Parts Scanalyzed 1 | . . 1 Part Schematics Acquired 1 | . . 1 Parts Damaged . | . . . Bothacking | -11 -10 -9 ------------ Run | Scr Mat Mat Used RIF Installer . | . . . Robots Hacked . | . . . Non-combat . | . . . Combat . | . . . Robot Hacks Applied . | . . . Relay Couplers Released . | . . . Robots Rewired . | . . . Allies Hacked . | . . . Hacks Repelled . | . . . Allies | -11 -10 -9 -------- Run | Scr Mat Mat Total Allies . | . . . Largest Group . | . . . Highest-Rated Group . | . . . Highest-Rated Ally . | . . . Total Orders . | . . . Ally Attacks . | . . . Total Damage . | . . . Kills . | . . . Allies Corrupted . | . . . Allies Melted . | . . . Intel | -11 -10 -9 ------- Run | Scr Mat Mat Robot Analysis Total 1 | . 1 . Derelict Logs Recovered . | . . . Drone Launches . | . . . Drone Recoveries . | . . . Exploration | -11 -10 -9 ------------- Run | Scr Mat Mat Turns Passed 2289 | 71 827 1391 Spaces Moved 744 | 54 257 433 Core 16 | 16 . . Treads . | . . . Legs . | . . . Wheels 110 | 38 72 . Hover . | . . . Flight 618 | . 185 433 Fastest Speed 50 | 50 100 114 Average Speed 269 | 107 287 278 Slowest Speed 760 | 150 357 760 Overloaded Moves . | . . . Propulsion Burnouts . | . . . Robots Hopped . | . . . Cave-ins Triggered . | . . . Exploration Rate (%) 33 | 5 53 41 Regions Visited 2 Branch Regions . Pre-discovered Areas . | . . . Known Exits Taken . | . . . Unknown Exits Taken 2 | 1 1 . Scrap Searched . | . . . Spaces Dug . | . . . Terrain Destroyed . | . . . Melee . | . . . Projectile . | . . . AOE . | . . . Terrain Rammed . | . . . Walls Destroyed . | . . . Machines Disabled . | . . . Actions | -11 -10 -9 --------- Run | Scr Mat Mat Total 907 | 67 298 542 Wait . | . . . Move 742 | 53 256 433 Hop . | . . . Pick Up 38 | 8 8 22 Fast Attach . | . . . Attach 25 | 6 4 15 Detach 2 | . . 2 Swap 11 | . 4 7 Drop 13 | . . 13 Fire 74 | . 25 49 Melee . | . . . Ram 2 | . 1 1 Kick . | . . . Crush . | . . . Escape Stasis . | . . . Rewire . | . . . Trap . | . . . Miscellaneous . | . . . Route ------- -11/Scrapyard -10/Materials (discovered 3 exits: *Mat / [*Min x2]) -9/Materials (discovered 1 exit: [*Mat]) History --------- Turn | Location | Event 2 | -11/Scrapyard | Met Revision 17 18 | -11/Scrapyard | Discovered new exit (range 15) 72 | -11/Scrapyard | Entered Materials 131 | -10/Materials | Discovered new exit (range 18) 131 | -10/Materials | Discovered new exit (range 15) 211 | -10/Materials | Lost 3 parts (1p1n1w) 303 | -10/Materials | Build established: Mutant 752 | -10/Materials | Discovered new exit (range 15) 899 | -10/Materials | Entered another Materials area 899 | -9/Materials | Evolved 2 slots: Propulsion x1, Weapon x1 1141 | -9/Materials | Lost 4 parts (1p1n2w) 2108 | -9/Materials | Core integrity fell below 50% 2148 | -9/Materials | Core integrity fell below 20% 2261 | -9/Materials | Discovered new exit (range 16) 2290 | -9/Materials | Destroyed by G-34 Mercenary with Small Laser Last Messages --------------- M006. 02212_ R-06 Scavenger collects Lgt. Armor Plating. 02239_ K-01 Serf collects debris. 02252_ W-16 Scout distress signal alerts nearby ally. 02257_ W-16 Scout destroyed. 02260_ Dropped Broken Flight Unit. 02261_ Acquired 21 matter. 02261_ EXIT=FOUND 02268_ K-01 Serf cleans the Pressure Siphon. 02268_ Beam Cannon destroyed. 02271_ Flight Unit destroyed. 02274_ Med. Laser destroyed. 02277_ K-01 Serf cleans the Pressure Siphon. 02279_ U-05 Engineer lays Concrete. 02280_ K-01 Serf cleans the Pressure Siphon. 02283_ Sml. Laser destroyed. 02285_ K-01 Serf collects debris. 02286_ Sml. Laser destroyed. 02286_ Flight Unit destroyed. 02289_ K-01 Serf collects debris. Map ----- +----------------------------------------------------+ | ??????????? #????????????????????????????????? | | ??????????? #????????????????????????????????? | | ??????????? #????????????????????????????????? | | ??????????# #????????????????????????????????? | | ??????????# #????????????????????????????????? | | ??????????# #????????????????????????????????? | | ??????????# #????????????????????????????????? | | ??????????# #????????????????????????????????? | | ??????????# ############?????????????????????? | | ??????????# ## #?????????????????????? | | ??????????# ## """ """ #?????????????????????? | | ???######## ## """ """ #?????????????????????? | | ???# # ## """ """ #?????????????????????? | | ???# "" # ## #?????????????????????? | | ???# " S # ## #?????????????????????? | | #### " # ## !#?????????????????????? | | # #!= ## #?????????????????????? | | "" #[ #%! ######+#####?????????????????????? | | "" +* % + #???# #?######?????????????????? | | "" #! "" # ##### # #?????????????????? | | "" #[""" # # #?????????????????? | | "" # "" # + #?????????????????? | | # " # T """ # #?????????????????? | | ! # % " # """ # #?????????????????? | | #### # """ =######## #####??????????? | | ####### ### """ =! !@ u #??????? | | ####?# k!*= g u< #??????? | | #????# g Y #??????? | | T #????# """ g ######+#### #####???????? | | #????# """ #???????????????????????? | | #???+ """ #???????????????????????? | | # ##???## """ #???????????????????????? | | # #?????# #???????????????????????? | | # #?????# #???????????????????????? | | # #?????? """ #???????????????????????? | | #% ###+### """ #???????????????????????? | | """ ???????????????????????? | | % """ ???????????????????????? | | "" ???????????????????????? | | """ ???????????????????????? | | """ #############/###???????????????????????? | | #???????????????????????????????????????? | | #???????????????????????????????????????? | | #???????????????????????????????????????? | | #???????????????????????????????????????? | | #???????????????????????????????????????? | | ###???????????????????????????????????????? | | !#?????????????????????????????????????????? | | !#?????????????????????????????????????????? | | !! !##?????????????????????????????????????????? | +----------------------------------------------------+ Best States ------------- Heat Dissipation 28 Energy Generation 12 Energy Capacity 265 Matter Stores 300 Matter Capacity 300 Sight Range 16 Terrain Scan Density 10 Resistance: KI 20 Resistance: TH 20 Resistance: EX 20 Resistance: EM 20 Resistance: I 20 Resistance: S 20 Resistance: P 20 Evasion (%) 40 Targeting Accuracy 6 Offensive Hacking 10 Item Schematics ----------------- Sml. Storage Unit | -9/Materials | Scanalyzed Robot Schematics ------------------ None Fabricated ------------ Nothing Alien Tech Used ----------------- None Achievements -------------- GoHome() Challenges ------------ None Game ------ Seed MatterOpticalTerminator Manual? 0 Play Time 00:21:50 Cumulative 19368362.0 hours Start 2020.11.13 @ 17:26:12 End 2020.11.14 @ 20:22:30 Sessions 3 Manual Loads 0 Difficulty Adventurer Special Mode Halloween2020/ForbiddenLore Game No. 33 Rogue 21 Adventurer 4 Explorer 8 Win Type - Total 0 Types 0/0/0/0/0/0/0/0/0 Lore% 14 Gallery% 27 Achievement% 20 Wizard Run 0 Options --------- ASCII 0 Keyboard 0 Movement Mouse Keybinds 0 Fullscreen 1 Font 24/Smallcaps Map View 76x50 Tactical HUD 1 Map Filters NONE Filters NONE Steam 1 RUN: 7b3c83c3-2b95-443f-ac03-ec4011a14fa4